[Event "*** Titled Tuesday Blitz"]
[Site "Chess.com"]
[Date "2021.04.27"]
[Round "10"]
[White "rasmussvane"]
[Black "BahadirOzen"]
[Result "1-0"]
[WhiteElo "2893"]
[BlackElo "2668"]
[TimeControl "180+1"]
[EndTime "11:54:04 PDT"]
[Termination "rasmussvane won on time"]

1. Nf3 {[%clk 0:03:00.9]} 1... g6 {[%clk 0:02:01.3]} 2. e4 {[%clk 0:03:00.5]}
2... d6 {[%clk 0:02:01.1]} 3. d4 {[%clk 0:03:00.7]} 3... Nf6 {[%clk 0:02:01.6]}
4. Bd3 {[%clk 0:03:01.2]} 4... Bg7 {[%clk 0:02:01.7]} 5. O-O {[%clk 0:03:01.1]}
5... O-O {[%clk 0:02:02.3]} 6. c3 {[%clk 0:03:01.7]} 6... Nbd7 {[%clk
0:02:01.1]} 7. Re1 {[%clk 0:03:00.8]} 7... e5 {[%clk 0:02:01]} 8. Nbd2 {[%clk
0:03:00.3]} 8... b6 {[%clk 0:01:58.7]} 9. Nf1 {[%clk 0:03:00]} 9... Bb7 {[%clk
0:01:58.8]} 10. Ng3 {[%clk 0:03:00.5]} 10... Re8 {[%clk 0:01:56.8]} 11. h3
{[%clk 0:02:59.9]} 11... c6 {[%clk 0:01:49.9]} 12. Be3 {[%clk 0:02:54.9]} 12...
Qc7 {[%clk 0:01:49.8]} 13. Qc2 {[%clk 0:02:45.9]} 13... b5 {[%clk 0:01:43.9]}
14. Rad1 {[%clk 0:02:45]} 14... a6 {[%clk 0:01:41.6]} 15. c4 {[%clk 0:02:37.5]}
15... exd4 {[%clk 0:01:38.6]} 16. Bxd4 {[%clk 0:02:33.9]} 16... b4 {[%clk
0:01:34.2]} 17. b3 {[%clk 0:02:07.8]} 17... Rad8 {[%clk 0:01:28.7]} 18. Nf1
{[%clk 0:02:06.7]} 18... Ne5 {[%clk 0:01:16.2]} 19. Bxe5 {[%clk 0:01:50.2]}
19... dxe5 {[%clk 0:01:16.1]} 20. c5 {[%clk 0:01:50.8]} 20... Nd7 {[%clk
0:01:12.6]} 21. Bc4 {[%clk 0:01:41.7]} 21... Bf8 {[%clk 0:01:05.6]} 22. Ng5
{[%clk 0:01:40.4]} 22... Re7 {[%clk 0:01:05.8]} 23. Rd6 {[%clk 0:01:27]} 23...
Bc8 {[%clk 0:00:53.4]} 24. Red1 {[%clk 0:01:23.9]} 24... Rde8 {[%clk 0:00:53.6]}
25. Ne3 {[%clk 0:01:16.8]} 25... Kg7 {[%clk 0:00:45.3]} 26. Ng4 {[%clk
0:01:12.1]} 26... Nxc5 {[%clk 0:00:38.6]} 27. Nf6 {[%clk 0:01:07.7]} 27... Nb7
{[%clk 0:00:17.1]} 28. Nxe8+ {[%clk 0:00:47.1]} 28... Rxe8 {[%clk 0:00:17.9]}
29. R6d3 {[%clk 0:00:45.8]} 29... f6 {[%clk 0:00:14.1]} 30. Nf3 {[%clk 0:00:45]}
30... Nc5 {[%clk 0:00:13.8]} 31. R3d2 {[%clk 0:00:45]} 31... a5 {[%clk
0:00:12.3]} 32. Nh2 {[%clk 0:00:40.7]} 32... Qe7 {[%clk 0:00:11.3]} 33. Nf1
{[%clk 0:00:39.2]} 33... Kh8 {[%clk 0:00:11.2]} 34. Ne3 {[%clk 0:00:39.3]} 34...
Bh6 {[%clk 0:00:11.7]} 35. Rd6 {[%clk 0:00:36.5]} 35... Be6 {[%clk 0:00:06.6]}
36. Bxe6 {[%clk 0:00:36]} 36... Nxe6 {[%clk 0:00:06.7]} 37. Qxc6 {[%clk
0:00:33.3]} 37... Nd4 {[%clk 0:00:07.1]} 38. Qd5 {[%clk 0:00:32.7]} 38... Rc8
{[%clk 0:00:06.5]} 39. Rd7 {[%clk 0:00:30.8]} 39... Qf8 {[%clk 0:00:06.7]} 40.
Qb7 {[%clk 0:00:30.2]} 40... Rd8 {[%clk 0:00:04]} 41. Rxh7+ {[%clk 0:00:28.1]}
41... Kg8 {[%clk 0:00:04.5]} 42. Rd7 {[%clk 0:00:20.2]} 42... Rc8 {[%clk
0:00:04.7]} 43. Nd5 {[%clk 0:00:19.7]} 43... Rc2 {[%clk 0:00:02.5]} 44. Ne7+
{[%clk 0:00:14.1]} 44... Kf7 {[%clk 0:00:01.1]} 45. Nf5+ {[%clk 0:00:13.7]} 1-0

[Event "*** Titled Tuesday Blitz"]
[Site "Chess.com"]
[Date "2021.04.27"]
[Round "10"]
[White "RobertoJBM"]
[Black "chess94cu"]
[Result "1-0"]
[WhiteElo "2733"]
[BlackElo "2586"]
[TimeControl "180+1"]
[EndTime "11:54:04 PDT"]
[Termination "RobertoJBM won on time"]

1. d4 {[%clk 0:03:00.9]} 1... Nf6 {[%clk 0:02:58.4]} 2. c4 {[%clk 0:03:00.8]}
2... c5 {[%clk 0:02:50.9]} 3. d5 {[%clk 0:03:00.7]} 3... b5 {[%clk 0:02:51.5]}
4. cxb5 {[%clk 0:03:01.6]} 4... a6 {[%clk 0:02:45.5]} 5. bxa6 {[%clk 0:03:02.5]}
5... g6 {[%clk 0:02:32.8]} 6. Nc3 {[%clk 0:03:02.6]} 6... Bxa6 {[%clk
0:02:25.2]} 7. g3 {[%clk 0:03:01.8]} 7... d6 {[%clk 0:02:18.9]} 8. Bg2 {[%clk
0:03:01]} 8... Bg7 {[%clk 0:02:19.5]} 9. Nf3 {[%clk 0:02:58.4]} 9... Nbd7 {[%clk
0:02:20.1]} 10. O-O {[%clk 0:02:57.2]} 10... Nb6 {[%clk 0:02:16.7]} 11. Re1
{[%clk 0:02:50.1]} 11... O-O {[%clk 0:02:09]} 12. Nd2 {[%clk 0:02:40.6]} 12...
Nfd7 {[%clk 0:01:54.8]} 13. Qc2 {[%clk 0:02:37.3]} 13... c4 {[%clk 0:01:46.5]}
14. Rb1 {[%clk 0:02:31.1]} 14... Qc7 {[%clk 0:01:42.5]} 15. Nf3 {[%clk
0:02:15.4]} 15... Bb7 {[%clk 0:01:36.9]} 16. Rd1 {[%clk 0:02:07.1]} 16... Nc5
{[%clk 0:01:05.6]} 17. Nd4 {[%clk 0:02:02]} 17... Qd7 {[%clk 0:01:02.7]} 18. Nc6
{[%clk 0:01:48.3]} 18... e6 {[%clk 0:00:56.9]} 19. Nb4 {[%clk 0:01:21.2]} 19...
exd5 {[%clk 0:00:45.5]} 20. Nbxd5 {[%clk 0:01:07.9]} 20... Nxd5 {[%clk
0:00:31.4]} 21. Bxd5 {[%clk 0:01:02.9]} 21... Rfe8 {[%clk 0:00:27.1]} 22. Bxc4
{[%clk 0:00:49.6]} 22... Qh3 {[%clk 0:00:18.2]} 23. Bd5 {[%clk 0:00:47.8]} 23...
Bxd5 {[%clk 0:00:17.4]} 24. Nxd5 {[%clk 0:00:45.5]} 24... Rxa2 {[%clk
0:00:16.2]} 25. Bf4 {[%clk 0:00:33.6]} 25... Qg4 {[%clk 0:00:16.1]} 26. Ne3
{[%clk 0:00:21.2]} 26... Qh5 {[%clk 0:00:12.9]} 27. Bxd6 {[%clk 0:00:16.3]}
27... Ne4 {[%clk 0:00:12.9]} 28. Ba3 {[%clk 0:00:14]} 28... Bh6 {[%clk
0:00:11.2]} 29. Nf1 {[%clk 0:00:13.4]} 29... Ng5 {[%clk 0:00:09.8]} 30. h4
{[%clk 0:00:11.7]} 30... Nh3+ {[%clk 0:00:07.7]} 31. Kg2 {[%clk 0:00:11.4]}
31... Nf4+ {[%clk 0:00:06.3]} 32. gxf4 {[%clk 0:00:10.5]} 32... Qxh4 {[%clk
0:00:05.8]} 33. e3 {[%clk 0:00:10.1]} 33... Qg4+ {[%clk 0:00:04.2]} 34. Ng3
{[%clk 0:00:10.6]} 34... Rb8 {[%clk 0:00:03.8]} 35. Qc3 {[%clk 0:00:10]} 35...
Bg7 {[%clk 0:00:03.9]} 36. Qc4 {[%clk 0:00:10.4]} 36... Rxa3 {[%clk 0:00:03.1]}
37. bxa3 {[%clk 0:00:11.3]} 37... Re8 {[%clk 0:00:03.4]} 38. Rd5 {[%clk
0:00:10.6]} 38... h5 {[%clk 0:00:03.2]} 39. Rbd1 {[%clk 0:00:11.2]} 39... h4
{[%clk 0:00:02.2]} 40. Rd8 {[%clk 0:00:11.1]} 40... Rxd8 {[%clk 0:00:02.6]} 41.
Rxd8+ {[%clk 0:00:11.9]} 41... Kh7 {[%clk 0:00:03.3]} 42. Qc8 {[%clk 0:00:11.6]}
42... hxg3 {[%clk 0:00:03.3]} 43. Qxg4 {[%clk 0:00:11]} 1-0

[Event "*** Titled Tuesday Blitz"]
[Site "Chess.com"]
[Date "2021.04.27"]
[Round "10"]
[White "ChronicUnhappiness"]
[Black "halldorgretar"]
[Result "1-0"]
[WhiteElo "2312"]
[BlackElo "2139"]
[TimeControl "180+1"]
[EndTime "11:54:04 PDT"]
[Termination "ChronicUnhappiness won on time"]

1. d3 {[%clk 0:03:00.9]} 1... Nf6 {[%clk 0:02:57.5]} 2. Nf3 {[%clk 0:03:01.8]}
2... g6 {[%clk 0:02:56.9]} 3. g3 {[%clk 0:03:02.7]} 3... Bg7 {[%clk 0:02:56.5]}
4. Bg2 {[%clk 0:03:03.6]} 4... O-O {[%clk 0:02:56.4]} 5. O-O {[%clk 0:03:04.5]}
5... d5 {[%clk 0:02:55.5]} 6. c3 {[%clk 0:03:04.2]} 6... c5 {[%clk 0:02:54.7]}
7. Bf4 {[%clk 0:03:04.3]} 7... Nc6 {[%clk 0:02:53.7]} 8. Ne5 {[%clk 0:03:04.1]}
8... Nxe5 {[%clk 0:02:46.2]} 9. Bxe5 {[%clk 0:03:05]} 9... Ne8 {[%clk
0:02:38.7]} 10. Bxg7 {[%clk 0:03:03.7]} 10... Kxg7 {[%clk 0:02:38.6]} 11. d4
{[%clk 0:02:58.7]} 11... cxd4 {[%clk 0:02:04.5]} 12. Qxd4+ {[%clk 0:02:59.6]}
12... Nf6 {[%clk 0:02:02.7]} 13. Rd1 {[%clk 0:02:59.1]} 13... Be6 {[%clk
0:02:02.2]} 14. Nd2 {[%clk 0:02:51.4]} 14... Qd7 {[%clk 0:01:48.5]} 15. Nf3
{[%clk 0:02:46.6]} 15... Rfd8 {[%clk 0:01:35.8]} 16. Ng5 {[%clk 0:02:31.2]}
16... Bf5 {[%clk 0:01:22.6]} 17. Rd2 {[%clk 0:02:30.8]} 17... h6 {[%clk
0:01:20.9]} 18. Nf3 {[%clk 0:02:28.9]} 18... Kg8 {[%clk 0:00:58]} 19. Ne5 {[%clk
0:02:28.6]} 19... Qe6 {[%clk 0:00:55.4]} 20. Rad1 {[%clk 0:02:27.9]} 20... Bh3
{[%clk 0:00:45]} 21. Bxh3 {[%clk 0:02:14.9]} 21... Qxh3 {[%clk 0:00:43.4]} 22.
c4 {[%clk 0:02:07.1]} 22... Rd6 {[%clk 0:00:33]} 23. c5 {[%clk 0:01:52.9]} 23...
Re6 {[%clk 0:00:32.8]} 24. f3 {[%clk 0:01:52.2]} 24... Qf5 {[%clk 0:00:28]} 25.
Nd3 {[%clk 0:01:49.8]} 25... Rc8 {[%clk 0:00:21.2]} 26. Nf4 {[%clk 0:01:48.3]}
26... Rec6 {[%clk 0:00:18.5]} 27. b4 {[%clk 0:01:47.8]} 27... e5 {[%clk
0:00:18.2]} 28. Nxd5 {[%clk 0:01:45.1]} 28... exd4 {[%clk 0:00:13.6]} 29. Ne7+
{[%clk 0:01:45.3]} 29... Kg7 {[%clk 0:00:13.3]} 30. Nxf5+ {[%clk 0:01:46.2]}
30... gxf5 {[%clk 0:00:13.4]} 31. Rxd4 {[%clk 0:01:47.1]} 31... a5 {[%clk
0:00:13]} 32. a3 {[%clk 0:01:46.3]} 32... axb4 {[%clk 0:00:13.2]} 33. axb4
{[%clk 0:01:47.2]} 33... b6 {[%clk 0:00:13.5]} 34. cxb6 {[%clk 0:01:41]} 34...
Rxb6 {[%clk 0:00:13.7]} 35. Rb1 {[%clk 0:01:41.5]} 35... Rcb8 {[%clk 0:00:13.9]}
36. Kf2 {[%clk 0:01:41.3]} 36... Rb5 {[%clk 0:00:13.9]} 37. e4 {[%clk
0:01:10.8]} 37... fxe4 {[%clk 0:00:13.6]} 38. fxe4 {[%clk 0:01:11.7]} 38... Re8
{[%clk 0:00:13.4]} 39. Kf3 {[%clk 0:01:11.1]} 39... h5 {[%clk 0:00:11.1]} 40. h3
{[%clk 0:01:10.7]} 40... Nh7 {[%clk 0:00:09.6]} 41. h4 {[%clk 0:01:05.4]} 41...
Nf6 {[%clk 0:00:09]} 42. Kf4 {[%clk 0:01:03.9]} 42... Ng4 {[%clk 0:00:09.3]} 43.
Rd5 {[%clk 0:01:01.8]} 43... Rxd5 {[%clk 0:00:07.1]} 44. exd5 {[%clk 0:01:02.7]}
44... Rb8 {[%clk 0:00:02.8]} 45. b5 {[%clk 0:01:00.4]} 45... Nf6 {[%clk
0:00:02.8]} 46. Ke5 {[%clk 0:00:59.8]} 46... Re8+ {[%clk 0:00:02.1]} 47. Kd6
{[%clk 0:00:49]} 47... Rd8+ {[%clk 0:00:02.6]} 48. Kc6 {[%clk 0:00:48.8]} 48...
Rxd5 {[%clk 0:00:02.4]} 49. b6 {[%clk 0:00:47.4]} 49... Rd3 {[%clk 0:00:02.1]}
50. b7 {[%clk 0:00:41.9]} 50... Nd7 {[%clk 0:00:02.1]} 51. Kc7 {[%clk
0:00:37.2]} 51... f6 {[%clk 0:00:02]} 52. Rb5 {[%clk 0:00:30.1]} 52... Kf7
{[%clk 0:00:02.1]} 53. Rxh5 {[%clk 0:00:27.8]} 1-0

[Event "*** Titled Tuesday Blitz"]
[Site "Chess.com"]
[Date "2021.04.27"]
[Round "10"]
[White "Korchmar_Vasiliy"]
[Black "CM_rui"]
[Result "1-0"]
[WhiteElo "2680"]
[BlackElo "2507"]
[TimeControl "180+1"]
[EndTime "11:54:07 PDT"]
[Termination "Korchmar_Vasiliy won on time"]

1. e4 {[%clk 0:03:00.9]} 1... e5 {[%clk 0:02:59.9]} 2. Nf3 {[%clk 0:03:01]} 2...
Nc6 {[%clk 0:03:00.3]} 3. Nc3 {[%clk 0:03:01.4]} 3... Nf6 {[%clk 0:02:59.8]} 4.
Bb5 {[%clk 0:03:02.1]} 4... Bb4 {[%clk 0:02:59.4]} 5. O-O {[%clk 0:03:01.7]}
5... O-O {[%clk 0:02:59.1]} 6. d3 {[%clk 0:03:01.9]} 6... d6 {[%clk 0:02:58.9]}
7. Bg5 {[%clk 0:03:01.6]} 7... Bxc3 {[%clk 0:02:56.7]} 8. bxc3 {[%clk 0:03:02]}
8... Qe7 {[%clk 0:02:55.8]} 9. Re1 {[%clk 0:03:00.8]} 9... Nd8 {[%clk
0:02:52.3]} 10. d4 {[%clk 0:03:00.3]} 10... Ne6 {[%clk 0:02:46.7]} 11. Bc1
{[%clk 0:02:59.8]} 11... c6 {[%clk 0:02:39.9]} 12. Bf1 {[%clk 0:02:59.7]} 12...
Nc7 {[%clk 0:02:38.5]} 13. Nh4 {[%clk 0:02:52.8]} 13... Nxe4 {[%clk 0:01:56.9]}
14. Rxe4 {[%clk 0:02:52.3]} 14... f5 {[%clk 0:01:39.1]} 15. Bc4+ {[%clk
0:02:26.1]} 15... d5 {[%clk 0:01:19.7]} 16. Rxe5 {[%clk 0:02:23.4]} 16... Qxh4
{[%clk 0:01:19.6]} 17. Bd3 {[%clk 0:02:22.1]} 17... Bd7 {[%clk 0:01:12.8]} 18.
Rb1 {[%clk 0:02:13.4]} 18... b6 {[%clk 0:01:12.1]} 19. Ba3 {[%clk 0:02:10.9]}
19... Rfe8 {[%clk 0:01:11.6]} 20. Bd6 {[%clk 0:02:11.4]} 20... Rxe5 {[%clk
0:01:02.3]} 21. Bxe5 {[%clk 0:02:12.3]} 21... Ne8 {[%clk 0:00:52.3]} 22. c4
{[%clk 0:02:11.8]} 22... Be6 {[%clk 0:00:45.8]} 23. cxd5 {[%clk 0:02:10.5]}
23... Bxd5 {[%clk 0:00:45.7]} 24. Bxf5 {[%clk 0:01:51.7]} 24... Qg5 {[%clk
0:00:44.5]} 25. Qg4 {[%clk 0:01:42.8]} 25... Qxg4 {[%clk 0:00:44.1]} 26. Bxg4
{[%clk 0:01:43.7]} 26... Bxa2 {[%clk 0:00:44.7]} 27. Ra1 {[%clk 0:01:41.4]}
27... Bd5 {[%clk 0:00:43.8]} 28. Bd7 {[%clk 0:01:30.6]} 28... Nf6 {[%clk
0:00:33.4]} 29. Bxf6 {[%clk 0:01:15.7]} 29... gxf6 {[%clk 0:00:34.3]} 30. c4
{[%clk 0:01:16.3]} 30... Bxc4 {[%clk 0:00:26]} 31. Bxc6 {[%clk 0:01:16.6]} 31...
Rd8 {[%clk 0:00:22.9]} 32. Rxa7 {[%clk 0:01:02]} 32... Rxd4 {[%clk 0:00:23.2]}
33. h3 {[%clk 0:01:02.4]} 33... Rd6 {[%clk 0:00:22.7]} 34. Be4 {[%clk 0:01:00]}
34... Bf7 {[%clk 0:00:14.6]} 35. Bxh7+ {[%clk 0:00:58.2]} 35... Kxh7 {[%clk
0:00:14.7]} 36. Rxf7+ {[%clk 0:00:57.5]} 36... Kg6 {[%clk 0:00:15.4]} 37. Rb7
{[%clk 0:00:58.4]} 37... Kf5 {[%clk 0:00:14.2]} 38. g3 {[%clk 0:00:52.8]} 38...
Ke4 {[%clk 0:00:14.2]} 39. Kg2 {[%clk 0:00:52.5]} 39... Kd3 {[%clk 0:00:12.8]}
40. h4 {[%clk 0:00:50.8]} 40... Kc4 {[%clk 0:00:12.2]} 41. h5 {[%clk 0:00:49.4]}
41... f5 {[%clk 0:00:12.7]} 42. f3 {[%clk 0:00:46.9]} 42... b5 {[%clk
0:00:12.2]} 43. g4 {[%clk 0:00:46]} 43... f4 {[%clk 0:00:11.2]} 44. Kh3 {[%clk
0:00:32]} 44... b4 {[%clk 0:00:10.4]} 45. g5 {[%clk 0:00:30.5]} 45... b3 {[%clk
0:00:10.6]} 46. g6 {[%clk 0:00:29.7]} 46... Kc3 {[%clk 0:00:09]} 47. g7 {[%clk
0:00:28.5]} 47... Rd8 {[%clk 0:00:07.6]} 48. h6 {[%clk 0:00:28.2]} 48... b2
{[%clk 0:00:07.4]} 49. h7 {[%clk 0:00:27.2]} 49... Rd1 {[%clk 0:00:03.9]} 50.
Rxb2 {[%clk 0:00:25.4]} 50... Rh1+ {[%clk 0:00:02.7]} 51. Kg4 {[%clk 0:00:24.9]}
1-0

[Event "*** Titled Tuesday Blitz"]
[Site "Chess.com"]
[Date "2021.04.27"]
[Round "10"]
[White "Iskusnyh"]
[Black "JiiHart"]
[Result "1-0"]
[WhiteElo "2582"]
[BlackElo "2070"]
[TimeControl "180+1"]
[EndTime "11:54:07 PDT"]
[Termination "Iskusnyh won on time"]

1. d4 {[%clk 0:03:00.9]} 1... Nf6 {[%clk 0:02:59.2]} 2. c4 {[%clk 0:03:00.9]}
2... g6 {[%clk 0:02:59.4]} 3. g3 {[%clk 0:03:00]} 3... Bg7 {[%clk 0:02:58.6]} 4.
Bg2 {[%clk 0:03:00.1]} 4... d5 {[%clk 0:02:59]} 5. cxd5 {[%clk 0:02:58.8]} 5...
Nxd5 {[%clk 0:02:58.6]} 6. Nf3 {[%clk 0:02:59.3]} 6... O-O {[%clk 0:02:57.9]} 7.
O-O {[%clk 0:02:59.3]} 7... c5 {[%clk 0:02:55.9]} 8. e4 {[%clk 0:02:58.9]} 8...
Nb6 {[%clk 0:02:49.3]} 9. d5 {[%clk 0:02:55.1]} 9... Bg4 {[%clk 0:02:43.8]} 10.
Nc3 {[%clk 0:02:51.1]} 10... N8d7 {[%clk 0:02:40]} 11. Qc2 {[%clk 0:02:35]}
11... Rc8 {[%clk 0:02:35.4]} 12. Bf4 {[%clk 0:02:29]} 12... e5 {[%clk
0:02:14.7]} 13. dxe6 {[%clk 0:02:14.3]} 13... fxe6 {[%clk 0:02:14]} 14. Bg5
{[%clk 0:01:48.4]} 14... Bf6 {[%clk 0:01:41]} 15. Bh6 {[%clk 0:01:25.3]} 15...
Bxf3 {[%clk 0:01:29]} 16. Bxf3 {[%clk 0:01:22.6]} 16... Ne5 {[%clk 0:01:17.3]}
17. Bg2 {[%clk 0:01:20]} 17... Rf7 {[%clk 0:01:07.4]} 18. Rad1 {[%clk
0:01:16.2]} 18... Qe8 {[%clk 0:01:05.3]} 19. h3 {[%clk 0:01:08.1]} 19... Rd8
{[%clk 0:00:54.2]} 20. Bc1 {[%clk 0:00:58.4]} 20... a6 {[%clk 0:00:38.7]} 21. f4
{[%clk 0:00:57.1]} 21... Nec4 {[%clk 0:00:34.8]} 22. e5 {[%clk 0:00:55.6]} 22...
Bg7 {[%clk 0:00:34.6]} 23. b3 {[%clk 0:00:54.2]} 23... Na5 {[%clk 0:00:28.1]}
24. Ne4 {[%clk 0:00:51.6]} 24... c4 {[%clk 0:00:20.3]} 25. Nd6 {[%clk
0:00:47.2]} 25... Qf8 {[%clk 0:00:11.1]} 26. Nxf7 {[%clk 0:00:42.9]} 26... Kxf7
{[%clk 0:00:11.6]} 27. Rxd8 {[%clk 0:00:38.8]} 27... Qxd8 {[%clk 0:00:12.5]} 28.
Rd1 {[%clk 0:00:38.9]} 28... Qc7 {[%clk 0:00:12.7]} 29. Be3 {[%clk 0:00:33.5]}
29... Bf8 {[%clk 0:00:12.2]} 30. Kh2 {[%clk 0:00:32.6]} 30... Bc5 {[%clk
0:00:10.2]} 31. Bxc5 {[%clk 0:00:31.4]} 31... Qxc5 {[%clk 0:00:10.7]} 32. Rc1
{[%clk 0:00:25.7]} 32... Kg7 {[%clk 0:00:09.5]} 33. bxc4 {[%clk 0:00:23.8]}
33... Naxc4 {[%clk 0:00:08.9]} 34. Rd1 {[%clk 0:00:22.5]} 34... Qa3 {[%clk
0:00:07.8]} 35. Rd3 {[%clk 0:00:21.5]} 35... Qb4 {[%clk 0:00:06.2]} 36. Bxb7
{[%clk 0:00:20.2]} 36... Qc5 {[%clk 0:00:05.7]} 37. Bg2 {[%clk 0:00:19.4]} 37...
Qb4 {[%clk 0:00:02.8]} 38. Rb3 {[%clk 0:00:19.1]} 38... Qc5 {[%clk 0:00:03.2]}
39. Rxb6 {[%clk 0:00:19.1]} 39... Qxb6 {[%clk 0:00:03.7]} 40. Qxc4 {[%clk
0:00:19.3]} 40... Qb2 {[%clk 0:00:04.1]} 41. Qxe6 {[%clk 0:00:19]} 41... a5
{[%clk 0:00:03.3]} 42. Qf6+ {[%clk 0:00:19.1]} 42... Kg8 {[%clk 0:00:02.5]} 43.
Qd8+ {[%clk 0:00:19.6]} 43... Kg7 {[%clk 0:00:02.6]} 44. e6 {[%clk 0:00:19.7]}
44... a4 {[%clk 0:00:01.6]} 45. e7 {[%clk 0:00:20]} 1-0

[Event "*** Titled Tuesday Blitz"]
[Site "Chess.com"]
[Date "2021.04.27"]
[Round "10"]
[White "Grieve72"]
[Black "blitzking1729"]
[Result "1-0"]
[WhiteElo "2529"]
[BlackElo "2652"]
[TimeControl "180+1"]
[EndTime "11:54:09 PDT"]
[Termination "Grieve72 won by checkmate"]

1. e4 {[%clk 0:03:00.8]} 1... Nf6 {[%clk 0:02:59]} 2. e5 {[%clk 0:02:59.6]} 2...
Nd5 {[%clk 0:02:58.6]} 3. d4 {[%clk 0:02:59.8]} 3... d6 {[%clk 0:02:58.5]} 4.
Nf3 {[%clk 0:02:58.2]} 4... dxe5 {[%clk 0:02:57.2]} 5. Nxe5 {[%clk 0:02:59.1]}
5... g6 {[%clk 0:02:57]} 6. Be2 {[%clk 0:02:55.2]} 6... Bg7 {[%clk 0:02:56.9]}
7. O-O {[%clk 0:02:55]} 7... O-O {[%clk 0:02:57]} 8. c4 {[%clk 0:02:48.8]} 8...
Nf6 {[%clk 0:02:51.1]} 9. Nc3 {[%clk 0:02:47.1]} 9... c6 {[%clk 0:02:51.4]} 10.
h3 {[%clk 0:02:41.2]} 10... Be6 {[%clk 0:02:49.8]} 11. Be3 {[%clk 0:02:37.9]}
11... Nbd7 {[%clk 0:02:46.9]} 12. Nf3 {[%clk 0:02:38.3]} 12... Bf5 {[%clk
0:02:43.8]} 13. g4 {[%clk 0:02:33.3]} 13... Be4 {[%clk 0:02:37.8]} 14. Ng5
{[%clk 0:02:30.7]} 14... e5 {[%clk 0:02:18.5]} 15. dxe5 {[%clk 0:02:12.6]} 15...
Nxe5 {[%clk 0:02:15.2]} 16. Qxd8 {[%clk 0:02:11.6]} 16... Raxd8 {[%clk
0:02:15.2]} 17. Ngxe4 {[%clk 0:02:11.9]} 17... Nxe4 {[%clk 0:02:15.3]} 18. Nxe4
{[%clk 0:02:12.8]} 18... Rfe8 {[%clk 0:02:16.2]} 19. Rad1 {[%clk 0:01:59.5]}
19... f5 {[%clk 0:02:00.2]} 20. gxf5 {[%clk 0:01:52.7]} 20... gxf5 {[%clk
0:02:01.1]} 21. Nd6 {[%clk 0:01:52.8]} 21... Rf8 {[%clk 0:01:58]} 22. Nxb7
{[%clk 0:01:47.3]} 22... Rb8 {[%clk 0:01:53.5]} 23. Nc5 {[%clk 0:01:45.5]} 23...
f4 {[%clk 0:01:50.2]} 24. Bc1 {[%clk 0:01:30.1]} 24... Rf5 {[%clk 0:01:31.1]}
25. Nd7 {[%clk 0:01:15.1]} 25... Rg5+ {[%clk 0:00:29.3]} 26. Kh1 {[%clk
0:01:00.3]} 26... f3 {[%clk 0:00:29.1]} 27. Bxg5 {[%clk 0:00:40.3]} 27... fxe2
{[%clk 0:00:15.6]} 28. Nxb8 {[%clk 0:00:40.1]} 28... Nd3 {[%clk 0:00:10.1]} 29.
Kg2 {[%clk 0:00:31.4]} 29... exf1=Q+ {[%clk 0:00:02.7]} 30. Kxf1 {[%clk
0:00:29.4]} 30... Nxb2 {[%clk 0:00:03.2]} 31. Rd7 {[%clk 0:00:24.8]} 31... Nxc4
{[%clk 0:00:01.8]} 32. Nxc6 {[%clk 0:00:24.9]} 32... Bc3 {[%clk 0:00:01.2]} 33.
Rxa7 {[%clk 0:00:20.8]} 33... Nb6 {[%clk 0:00:01.5]} 34. a4 {[%clk 0:00:18.1]}
34... Nd5 {[%clk 0:00:01.2]} 35. a5 {[%clk 0:00:18.2]} 35... Bb4 {[%clk
0:00:01.3]} 36. Nxb4 {[%clk 0:00:17.6]} 36... Nxb4 {[%clk 0:00:02.2]} 37. Rb7
{[%clk 0:00:17.6]} 37... Na6 {[%clk 0:00:03.1]} 38. Rb6 {[%clk 0:00:17.7]} 38...
Nc5 {[%clk 0:00:04]} 39. a6 {[%clk 0:00:18.2]} 39... Nxa6 {[%clk 0:00:04.2]} 40.
Rxa6 {[%clk 0:00:19.1]} 40... h6 {[%clk 0:00:04.7]} 41. Bxh6 {[%clk 0:00:17.8]}
41... Kh7 {[%clk 0:00:05.6]} 42. f4 {[%clk 0:00:18.2]} 42... Kg8 {[%clk
0:00:05.6]} 43. f5 {[%clk 0:00:18.6]} 43... Kh8 {[%clk 0:00:04.9]} 44. Kf2
{[%clk 0:00:19.5]} 44... Kg8 {[%clk 0:00:03.8]} 45. Kf3 {[%clk 0:00:20.4]} 45...
Kf7 {[%clk 0:00:03.6]} 46. Kf4 {[%clk 0:00:21.3]} 46... Kg8 {[%clk 0:00:04.5]}
47. Kg5 {[%clk 0:00:22.2]} 47... Kh7 {[%clk 0:00:05]} 48. Ra7+ {[%clk
0:00:22.8]} 48... Kh8 {[%clk 0:00:05.3]} 49. Kg6 {[%clk 0:00:23.1]} 49... Kg8
{[%clk 0:00:05.9]} 50. Ra8# {[%clk 0:00:24]} 1-0